bitfinex/quotes_ETHUSD_20241108
["timestamp","ask_amount","ask_price","bid_price","bid_amount"]
[1731072834339,0.7682,2927.3,2926.1,0.06833671]
[1731072834532,0.7682,2927.3,2926.2,1.31962002]
[1731072834745,0.7682,2927.3,2926.2,1.83555569]
[1731072835102,0.7682,2927.3,2926.2,1.31962002]
[1731072835228,0.7682,2927.3,2926.3,0.06833673]
[1731072835422,0.7682,2927.3,2926.2,1.31962002]
[1731072839077,0.7682,2927.3,2926.1,1.31962002]
[1731072839657,0.7682,2927.3,2926.2,0.06834066]
[1731072840997,0.7739,2927.1,2926.0,2.60422701]
[1731072841170,0.06834074,2927.0,2926.1,0.32875963]
[1731072841579,0.06834074,2927.0,2926.1,0.2604227]
[1731072841580,0.7809,2926.9,2926.1,0.2604227]
[1731072841757,0.7809,2926.9,2926.1,0.32875963]
[1731072842262,0.7809,2926.9,2926.1,0.32876079]
[1731072846893,0.7809,2926.9,2926.2,0.7521]
[1731072847068,0.7809,2926.9,2926.3,0.06833811]
[1731072848173,0.7809,2926.9,2926.2,0.06833858]
[1731072848368,0.7809,2926.9,2926.2,0.36163741]
[1731072850811,0.7809,2926.9,2926.2,12.55163741]
[1731072851015,0.7809,2926.9,2926.2,12.48329883]
[1731072851714,0.7809,2926.9,2926.3,1.3735]
[1731072852145,0.7809,2926.9,2926.3,0.8235]
[1731072852302,0.7809,2926.9,2926.4,0.62261297]
[1731072852648,0.7809,2926.9,2926.4,0.69094823]
[1731072852848,0.7855,2927.6,2926.5,12.73700299]
[1731072853142,0.7855,2927.6,2926.6,0.7623]
[1731072853315,0.06834074,2927.5,2926.6,0.7623]
[1731072853641,0.86294074,2927.9,2926.7,0.55372153]
[1731072853849,0.86294074,2927.9,2926.8,12.19]
[1731072855333,0.86294074,2927.9,2926.9,0.0683228]
[1731072855555,0.86294074,2927.9,2926.8,12.19]
[1731072856906,0.86294074,2927.9,2926.9,12.19]
[1731072858933,0.86294074,2927.9,2927.0,0.06831928]
[1731072859509,0.86294074,2927.9,2927.0,0.06831811]
[1731072860022,0.7946,2927.9,2927.0,0.06831811]
[1731072860229,0.8247,2928.3,2927.3,0.7774]
[1731072860413,0.8247,2928.3,2927.6,0.7774]
[1731072860615,0.8247,2928.3,2927.7,1.02288463]
[1731072860913,0.8191,2928.8,2927.7,0.95458653]
[1731072861125,0.8191,2928.6,2927.7,0.95458653]
[1731072862851,0.8191,2928.5,2927.8,0.06829625]
[1731072863053,0.8191,2928.5,2927.7,0.55]
[1731072864025,0.8191,2928.5,2927.5,0.55]
[1731072865223,0.8191,2928.5,2927.7,4.63106533]
[1731072865729,0.8191,2928.5,2927.9,0.55]
[1731072865945,0.7904,2929.2,2928.0,12.19]
[1731072866155,0.7904,2929.0,2928.1,12.19]
[1731072870260,0.7696,2928.8,2928.1,12.19]
[1731072871359,0.7696,2928.8,2928.2,0.0682921]
[1731072871660,0.7696,2928.8,2928.2,12.19]
[1731072872220,0.7696,2928.8,2928.3,0.0682895]
[1731072872671,0.7696,2928.8,2928.2,12.19]
[1731072872930,0.7696,2928.8,2928.3,12.19]
[1731072873198,0.7919,2929.1,2928.3,15.45846533]
[1731072873789,0.7919,2929.1,2928.3,12.19]
[1731072877589,0.7919,2929.1,2928.4,12.19]
[1731072878995,0.7919,2929.1,2928.0,12.19]
[1731072879195,0.752,2928.9,2928.0,12.19]
[1731072879377,0.752,2928.7,2928.0,12.19]
[1731072879819,0.752,2928.5,2928.0,12.19]
[1731072880017,0.752,2928.5,2927.8,12.19]
[1731072880996,0.752,2928.5,2927.1,3.0]
[1731072880997,0.06834074,2928.4,2927.5,12.19]
[1731072881318,0.7736,2928.3,2927.5,12.19]
[1731072881487,0.84194074,2928.2,2927.5,12.19]
[1731072882194,0.7736,2928.2,2927.6,0.06830866]
[1731072882402,0.7736,2928.2,2927.5,12.19]
[1731072883298,0.7736,2928.2,2927.6,0.06830823]
[1731072884698,0.7736,2928.2,2927.5,12.9804]
[1731072885025,0.7736,2928.2,2927.6,0.06830263]
[1731072885328,0.7736,2928.2,2927.5,12.9804]
[1731072886509,0.7736,2928.2,2927.6,12.19]
[1731072887618,0.7736,2928.2,2927.7,0.06830077]
[1731072887992,0.7736,2928.2,2927.6,12.19]
[1731072888501,0.8241,2928.0,2927.6,12.19]
[1731072888708,0.781,2927.8,2927.6,12.19]
[1731072888939,0.781,2927.8,2927.0,12.19]
[1731072889139,0.781,2927.8,2927.1,12.25831732]
[1731072889293,0.781,2927.8,2927.1,12.19]
[1731072889493,0.781,2927.8,2927.2,0.06831724]
[1731072890807,0.781,2927.8,2927.1,12.19]
[1731072892441,0.781,2927.8,2926.9,12.19]
[1731072892627,0.781,2927.8,2927.0,0.06831863]
[1731072893228,0.06834074,2927.7,2926.8,12.19]
[1731072893527,0.8226,2927.6,2926.8,12.19]
[1731072893836,0.8226,2927.4,2926.8,12.19]
[1731072894745,0.8226,2927.4,2926.9,0.0683256]
[1731072896539,0.8226,2927.4,2926.8,12.9537]
[1731072896940,0.8226,2927.4,2926.8,12.19]
[1731072898036,0.8226,2927.4,2926.9,0.06831885]
[1731072898401,0.7805,2928.3,2927.1,0.8256]
[1731072898648,0.7805,2928.1,2927.2,0.06831203]
[1731072899510,0.7805,2928.1,2927.0,12.19]
[1731072899915,0.7805,2928.1,2927.1,0.068312]
[1731072900421,0.7805,2928.1,2927.2,12.19]
[1731072901957,0.8283,2927.9,2927.2,12.19]
[1731072902121,0.8283,2927.7,2927.2,12.19]
[1731072902645,0.8283,2927.7,2926.7,12.19]
[1731072902843,0.8178,2927.5,2926.8,0.06832384]
[1731072903721,0.8178,2927.5,2927.0,3.26846533]
[1731072904021,0.8148,2928.2,2927.4,0.55]
[1731072904520,0.8148,2928.2,2927.1,12.9958]
[1731072904742,0.8148,2928.2,2927.2,0.06830981]
[1731072904946,0.8148,2928.2,2927.1,12.9958]
[1731072904947,0.8148,2928.2,2927.1,12.19]
[1731072905145,0.7518,2928.0,2927.1,12.19]
[1731072905453,0.7518,2927.8,2927.1,12.19]
[1731072905763,0.7518,2927.8,2927.2,0.06831585]
[1731072906337,0.7518,2927.8,2927.1,12.19]
[1731072906878,0.7518,2927.8,2927.2,0.06831187]
[1731072907179,0.7518,2927.8,2927.0,12.19]
[1731072907877,0.7518,2927.8,2927.1,0.06831767]
[1731072908074,0.7518,2927.8,2927.0,12.19]
[1731072911050,0.7518,2927.8,2927.1,0.0683169]
[1731072911250,0.7518,2927.8,2927.1,0.06831169]
[1731072912583,0.7518,2927.8,2927.2,4.08986533]
[1731072912797,0.7518,2927.8,2927.2,0.88971167]
[1731072913147,0.7518,2927.8,2927.3,12.19]
[1731072913376,0.7518,2927.8,2927.4,12.25830968]
[1731072913684,0.826,2928.7,2927.4,12.19]
[1731072913851,0.826,2928.7,2927.2,4.08986533]
[1731072913852,0.826,2928.7,2927.5,12.19]
[1731072914058,0.826,2928.5,2927.6,0.06830373]
[1731072914260,0.826,2928.3,2927.6,0.06830373]
[1731072915994,0.826,2928.3,2927.5,12.19]
[1731072916161,0.826,2928.3,2927.6,0.0682988]
[1731072916565,0.826,2928.3,2927.8,3.26846533]
[1731072916801,0.7854,2929.0,2928.1,3.26846533]
[1731072917093,0.7854,2929.0,2928.2,12.25828393]
[1731072917250,0.7854,2929.0,2928.3,0.06828952]
[1731072917861,0.7854,2929.0,2928.4,12.19]
[1731072918974,0.7854,2929.0,2927.9,0.7522]
[1731072918975,0.83484074,2928.9,2927.9,12.19]
[1731072919191,0.7665,2928.8,2927.4,12.19]
[1731072919495,0.7665,2928.6,2927.5,12.19]
[1731072919698,0.7665,2928.4,2927.6,0.06830656]
[1731072919902,3.0,2928.9,2927.6,0.06830656]
[1731072919903,0.7665,2928.2,2927.6,0.06830656]
[1731072920088,0.7665,2928.2,2927.7,12.9422]
[1731072920303,0.7665,2928.2,2927.8,0.06830022]
[1731072920509,0.7544,2928.5,2927.8,0.06830022]
[1731072920821,0.7544,2928.5,2927.9,16.00846533]
[1731072920984,0.7758,2929.2,2928.2,3.26846533]
[1731072921184,0.7758,2929.2,2928.3,12.25828755]
[1731072921380,0.7758,2929.2,2928.4,0.06828644]
[1731072921932,0.7758,2929.2,2928.3,12.19]
[1731072922241,0.7758,2929.2,2928.4,0.06828388]
[1731072922519,0.7758,2929.2,2928.3,12.9695]
[1731072923290,0.7758,2929.2,2928.4,0.06828039]
[1731072923514,0.7758,2929.2,2928.5,12.19]
[1731072925207,0.7758,2929.2,2928.6,0.06827877]
[1731072925728,0.7758,2929.2,2928.7,0.8255]
[1731072925909,0.06834074,2930.1,2928.8,0.06827514]
[1731072925910,0.7811,2930.0,2928.8,0.06827514]
[1731072926235,0.7811,2929.8,2928.9,12.19]
[1731072926418,0.7811,2929.8,2929.1,3.26846533]
[1731072926739,0.7811,2929.8,2929.2,0.06826305]
[1731072927021,0.7811,2929.8,2929.3,0.773]
[1731072927235,0.7811,2930.3,2929.4,0.06826308]
[1731072927527,0.06834074,2930.6,2929.7,3.26846533]
[1731072927691,0.7702,2930.7,2929.8,0.47593271]
[1731072928585,0.7702,2930.7,2929.8,0.40768653]
[1731072928785,0.7702,2930.7,2929.5,12.19]
[1731072928989,0.8086,2930.5,2929.6,0.06825289]
[1731072929206,0.87694074,2930.5,2929.6,0.06825289]
[1731072929691,0.87694074,2930.5,2929.5,12.19]
[1731072929692,0.8086,2930.5,2929.5,12.19]
[1731072930029,0.753,2930.3,2929.1,12.19]
[1731072930330,1.20347481,2930.2,2929.2,0.06826973]
[1731072930490,0.82134074,2930.2,2929.2,0.06826973]
[1731072931810,0.753,2930.2,2929.3,0.7687]
[1731072932332,0.753,2930.2,2929.4,0.068255]
[1731072932542,0.753,2930.2,2929.4,0.06825545]
[1731072932715,0.753,2930.2,2929.3,0.7687]
[1731072933039,0.7645,2930.8,2929.4,3.33672203]
[1731072933243,0.06834074,2930.7,2929.5,0.4105422]
[1731072933540,0.06834074,2930.7,2929.6,0.06825545]
[1731072933701,0.7645,2930.8,2929.5,12.6005422]
[1731072934138,0.7645,2930.8,2929.7,3.26846533]
[1731072934302,0.7645,2930.8,2929.9,0.7682]
[1731072934501,0.7645,2930.8,2930.0,0.7657923]
[1731072934702,0.7645,2930.8,2930.1,12.19]
[1731072935127,0.7645,2930.8,2930.2,0.06824215]
[1731072935353,0.7645,2930.8,2930.2,12.19]
[1731072939847,3.26846533,2930.7,2930.1,12.19]
[1731072940052,0.8103,2930.5,2929.3,12.19]
[1731072940341,0.8103,2930.5,2929.4,12.9441]
[1731072944631,0.8103,2930.5,2929.4,12.19]
[1731072944874,0.06834074,2930.4,2929.4,12.19]
[1731072945073,0.7942,2930.3,2929.4,12.19]
[1731072945271,0.7942,2930.1,2929.4,12.19]
[1731072945637,0.7942,2929.9,2929.1,12.19]
[1731072945881,0.7942,2929.9,2929.2,12.19]
[1731072946677,0.06834074,2929.8,2928.8,12.19]
[1731072946849,0.7789,2929.7,2928.8,12.19]
[1731072948776,0.06834074,2930.3,2928.8,12.19]
[1731072948777,0.87434074,2930.3,2928.8,12.19]
[1731072948961,0.87434074,2930.2,2929.1,0.55]
[1731072949278,0.806,2930.2,2929.2,0.06825887]
[1731072949438,0.806,2930.2,2929.3,3.26846533]
[1731072949837,0.806,2930.2,2929.4,0.06825818]
[1731072950068,0.806,2930.2,2929.3,3.26846533]
[1731072950268,0.806,2930.2,2929.4,0.32684653]
[1731072951175,0.806,2930.2,2929.1,3.0]
[1731072951340,0.806,2930.2,2929.0,3.26846533]
[1731072951544,0.8216,2930.0,2929.0,3.26846533]
[1731072951744,0.8216,2930.0,2929.1,12.19]
[1731072956083,0.8216,2930.0,2929.2,0.06826377]
[1731072957350,0.8216,2930.0,2929.1,12.19]
[1731072957590,0.8216,2930.0,2929.2,12.19]
[1731072957891,0.8216,2930.0,2929.3,0.06826376]
[1731072959598,0.8216,2930.0,2929.3,3.33672909]
[1731072959775,0.8216,2930.0,2929.4,12.74]
[1731072959953,0.8216,2930.0,2929.5,0.06825571]
[1731072960295,0.8216,2930.0,2929.4,13.5007]
[1731072961765,0.7712,2931.1,2929.6,3.26846533]
[1731072962101,0.7712,2930.9,2929.7,12.19]
[1731072962306,0.8266,2930.7,2929.8,0.06824908]
[1731072963711,0.8266,2930.7,2929.9,16.00846533]
[1731072963861,0.8266,2930.7,2930.2,3.26846533]
[1731072964195,0.8266,2930.7,2930.3,12.19]
[1731072965299,0.8266,2930.7,2930.4,0.06824548]
[1731072965669,0.8266,2930.7,2930.3,12.19]
[1731072967013,0.7618,2930.5,2930.3,12.19]
[1731072969612,0.7618,2930.5,2929.4,12.19]
[1731072969780,0.7618,2930.5,2929.5,12.19]
[1731072970215,0.7618,2930.5,2929.6,0.06825176]
[1731072971511,0.7618,2930.5,2929.5,12.19]
[1731072971815,0.7618,2930.5,2929.6,12.19]
[1731072972021,0.7618,2930.5,2929.7,0.06825594]
[1731072972696,0.7618,2930.5,2929.6,12.19]
[1731072973498,0.7618,2930.5,2929.7,0.06825245]
[1731072974322,0.7618,2930.5,2929.7,0.89965245]
[1731072974635,0.7618,2930.5,2929.7,0.8314]
[1731072974830,0.7618,2930.5,2929.8,0.06824685]
[1731072975212,0.7618,2930.5,2929.9,3.26846533]
[1731072975444,0.7878,2930.9,2930.0,12.80824523]
[1731072975633,0.7878,2930.9,2930.2,0.7694]
[1731072975835,0.7878,2930.9,2930.3,0.06823776]
[1731072976036,0.7878,2930.9,2930.2,0.7694]
[1731072976248,0.7878,2930.9,2930.3,12.19]
[1731072976645,0.82,2931.7,2930.4,0.06823514]
[1731072976854,0.82,2931.7,2930.5,12.19]
[1731072976855,0.82,2931.5,2930.5,12.19]
[1731072977150,0.06834074,2931.4,2930.5,12.19]
[1731072977349,0.06834074,2931.3,2930.5,12.19]
[1731072977548,0.41568061,2931.7,2930.5,12.19]
[1731072977549,0.82,2931.2,2930.5,12.19]
[1731072978025,0.82,2931.2,2930.6,0.61823154]
[1731072978171,0.82,2931.2,2930.5,12.19]
[1731072978927,0.82,2931.2,2930.6,0.0682306]
[1731072979140,0.7965,2931.5,2930.7,0.7718]
[1731072979359,0.7965,2931.5,2930.8,0.55]
[1731072980672,0.7607,2932.1,2930.8,0.55]
[1731072980826,0.7607,2932.0,2930.9,0.06821853]
[1731072981027,0.7607,2932.0,2931.0,0.36182185]
[1731072981231,0.7607,2932.0,2931.1,12.25821785]
[1731072981455,0.7607,2932.0,2931.1,12.19]
[1731072982576,0.7607,2932.0,2931.3,1.3678]
[1731072984213,0.7607,2932.0,2931.4,12.19]
[1731072984503,0.7607,2932.0,2931.5,0.81451265]
[1731072984703,0.7607,2932.0,2931.6,0.06821129]
[1731072984910,0.7607,2932.0,2931.6,12.25821129]
[1731072985203,0.7607,2932.0,2931.6,12.19]
[1731072985405,0.7607,2932.0,2931.7,0.06821167]
[1731072986473,0.7607,2932.0,2931.6,12.19]
[1731072986810,0.7607,2932.0,2931.7,0.06820984]
[1731072987110,0.7581,2932.9,2931.7,0.06820984]
[1731072987301,0.7581,2932.7,2931.8,12.19]
[1731072987618,0.7581,2932.3,2931.8,12.19]
[1731072987774,0.7581,2932.3,2931.9,12.19]
[1731072989085,3.0,2932.5,2931.9,12.19]
[1731072989086,0.8236,2932.1,2931.9,12.19]
[1731072993098,0.8236,2932.1,2931.1,12.19]
[1731072993298,0.8236,2932.1,2931.2,12.25821633]
[1731072993512,0.8236,2932.1,2931.2,12.19]
[1731072993813,0.8236,2932.1,2931.3,0.06821633]
[1731072994593,0.8236,2932.1,2931.2,12.19]
[1731072996194,0.7924,2931.9,2931.2,12.19]
[1731072996501,0.7924,2931.7,2931.2,12.19]
[1731072996715,0.7924,2931.5,2931.2,12.19]
[1731072996920,0.7924,2931.5,2930.5,12.19]
[1731072997123,0.7924,2931.5,2930.6,12.25822816]
[1731072997282,0.7924,2931.5,2930.6,12.19]
[1731072997478,0.7924,2931.5,2930.7,0.0682281]
[1731072997988,0.7749,2932.0,2931.0,0.55]
[1731072998193,0.7749,2932.0,2931.2,0.55]
[1731072998520,0.7749,2932.0,2931.3,12.19]
[1731073002142,0.7749,2932.0,2931.4,12.25821208]
[1731073002344,0.7749,2932.0,2931.4,12.19]
[1731073002546,0.7749,2932.0,2931.5,0.06821217]
[1731073003104,0.7749,2932.0,2931.4,12.19]
[1731073003305,0.7749,2932.0,2931.5,0.06821202]
[1731073003932,0.7749,2932.0,2931.4,12.19]
[1731073004522,0.7749,2932.0,2931.5,0.06821217]
[1731073004719,0.7981,2932.3,2931.6,3.26846533]
[1731073004918,0.7981,2932.5,2931.7,3.61820012]
[1731073005235,0.7981,2932.5,2931.5,3.55]
[1731073005438,0.06834074,2932.4,2931.4,12.19]
[1731073005661,0.84114074,2932.4,2931.4,12.19]
[1731073006026,0.84114074,2932.4,2931.5,0.06821396]
[1731073008089,0.84114074,2932.4,2931.6,12.19]
[1731073008963,0.7728,2932.4,2931.6,12.19]
[1731073009167,0.7728,2932.4,2931.6,12.9403]
[1731073009475,0.7728,2932.4,2931.7,0.06820417]
[1731073010486,0.7728,2932.4,2931.7,0.55]
[1731073011834,0.7728,2932.4,2931.6,16.20876533]
[1731073012860,0.7728,2932.4,2931.7,0.06820083]
[1731073013173,0.7728,2932.4,2931.6,16.20876533]
[1731073013959,0.78,2933.3,2932.0,3.26846533]
[1731073014368,0.78,2933.3,2932.1,0.06819116]
[1731073015068,0.78,2933.3,2932.1,0.06818837]
[1731073015226,0.78,2933.3,2932.2,0.33366537]
[1731073016157,0.8122,2932.9,2932.3,0.06818837]
[1731073016535,0.8122,2932.9,2931.9,0.06819671]
[1731073017371,0.8122,2932.9,2932.0,3.26846533]
[1731073017541,0.8122,2932.9,2932.1,0.8042]
[1731073017753,0.8122,2932.9,2932.2,0.47545575]
[1731073018453,0.8196,2933.1,2932.1,0.8142]
[1731073019031,3.06834074,2933.7,2932.2,0.06818181]
[1731073019230,0.8196,2933.6,2932.6,0.7582]
[1731073019459,0.8196,2933.6,2932.7,0.06817345]
[1731073019700,0.8196,2933.6,2932.8,0.38263735]
[1731073019899,0.8196,2933.6,2933.0,0.7582]
[1731073020193,0.7509,2934.2,2933.0,0.7582]
[1731073021108,0.06834074,2934.1,2933.0,0.7582]
[1731073021397,0.06834074,2934.1,2932.8,0.38263735]
[1731073021398,0.8234,2934.0,2932.8,0.38263735]
[1731073021598,0.7887,2933.9,2932.9,0.79369715]
[1731073021968,0.85704074,2933.9,2932.9,0.79369715]
[1731073022175,0.7887,2933.9,2932.9,0.79369715]
[1731073022788,3.33680607,2933.8,2932.9,0.79369715]
[1731073023144,0.7793,2933.7,2932.9,0.79369715]
[1731073023770,0.7856,2933.5,2932.9,0.79369715]
[1731073023973,0.85354074,2933.4,2931.9,0.7792]
[1731073024172,3.06834074,2933.4,2931.9,0.7792]
[1731073024377,0.7852,2933.3,2931.6,12.19]
[1731073024575,0.7852,2933.0,2931.6,11.545943]
[1731073025067,0.7852,2933.0,2931.8,0.67380659]
[1731073025265,0.85304074,2932.9,2931.8,0.67380659]
[1731073025475,0.85304074,2932.9,2931.6,11.545943]
[1731073026074,0.7947,2932.6,2931.6,11.545943]
[1731073026275,0.7947,2932.6,2931.7,11.545943]
[1731073031278,3.06834074,2932.8,2931.4,0.8083]
[1731073031279,0.783,2932.4,2931.8,11.545943]
[1731073033235,0.783,2932.4,2931.9,0.06820431]
[1731073033842,0.783,2932.4,2931.8,11.545943]
[1731073034749,0.777,2932.2,2931.9,11.545943]
[1731073035035,0.777,2931.9,2931.3,11.545943]
[1731073035202,0.777,2931.9,2931.4,11.545943]
[1731073035602,0.777,2931.9,2931.5,0.06821367]
[1731073035805,0.777,2931.9,2931.4,11.545943]
[1731073037007,0.8111,2931.7,2931.4,11.545943]
[1731073037347,0.8111,2931.5,2931.4,11.545943]
[1731073037495,0.01,2931.4,2930.3,11.545943]
[1731073037702,0.01,2931.4,2930.4,11.545943]
[1731073037703,0.8111,2931.3,2930.4,11.545943]
[1731073037936,0.8111,2931.3,2930.5,0.06822991]
[1731073039135,0.8111,2931.3,2930.5,0.76445357]
[1731073040398,0.8111,2931.3,2930.5,0.06822991]
[1731073040615,0.8111,2931.3,2930.4,11.545943]
[1731073041032,0.8111,2931.3,2930.5,0.06822994]
[1731073041612,0.8111,2931.3,2930.4,11.545943]
[1731073041932,0.8111,2931.3,2930.6,0.7764]
[1731073042542,0.8111,2931.3,2930.7,0.06822446]
[1731073042842,0.8111,2931.3,2930.6,0.7764]
[1731073043336,0.7834,2931.8,2930.7,0.06822448]
[1731073043635,0.7834,2931.8,2930.8,11.545943]
[1731073043853,0.7834,2931.8,2930.6,0.7764]
[1731073043854,0.7834,2931.8,2930.9,12.43365684]
[1731073044031,0.8219,2932.3,2931.0,14.545943]
[1731073044937,0.8219,2932.3,2931.1,0.06820586]
[1731073045308,0.8219,2932.3,2931.0,14.545943]
[1731073045502,0.8219,2932.3,2931.3,0.7883]
[1731073045745,0.8219,2932.3,2931.4,0.06820519]
[1731073046109,0.8219,2932.3,2931.5,11.545943]
[1731073046305,0.8219,2932.3,2931.6,11.545943]
[1731073046644,0.8219,2932.3,2931.7,11.61414363]
[1731073046944,0.8219,2932.3,2931.8,11.545943]
[1731073047532,0.7953,2932.6,2931.9,11.545943]
[1731073047741,0.7953,2932.6,2932.0,11.545943]
[1731073047951,0.7953,2932.6,2932.1,0.06819869]
[1731073048147,0.7953,2932.6,2932.1,11.545943]
[1731073048502,0.7669,2932.4,2932.1,11.545943]
[1731073051661,3.27846533,2932.4,2932.1,11.545943]
[1731073051956,0.8013,2932.3,2932.1,11.545943]
[1731073052519,0.8013,2932.3,2930.5,3.26846533]
[1731073052520,0.01,2931.8,2931.3,11.545943]
[1731073052745,0.7765,2931.7,2931.4,0.0682119]
[1731073053054,0.7765,2931.7,2931.0,0.06821213]
[1731073054525,0.7765,2932.2,2931.1,0.7611]
[1731073054762,0.7765,2932.2,2931.2,0.06820886]
[1731073054924,0.7765,2932.2,2931.3,11.545943]
[1731073055260,0.7765,2932.2,2931.4,0.7611]
[1731073055931,0.7865,2932.2,2931.4,0.7611]
[1731073056258,0.7765,2932.2,2931.5,0.06820811]
[1731073056924,0.7765,2932.2,2931.4,0.7611]
[1731073057363,0.7765,2932.2,2931.3,11.545943]
[1731073058463,0.7765,2932.2,2931.4,11.61414989]
[1731073058666,0.7765,2932.2,2931.4,11.545943]
[1731073058960,0.7765,2932.2,2931.5,0.06820691]
[1731073060063,0.7765,2932.2,2931.5,3.06820691]
[1731073060426,0.7765,2932.2,2931.5,3.0]
[1731073060661,0.7765,2932.2,2931.6,0.06820461]
[1731073060866,0.7765,2932.2,2931.5,3.0]
[1731073061032,0.7865,2932.2,2931.6,0.06820647]
[1731073061231,0.7865,2932.2,2931.4,11.545943]
[1731073061457,0.7865,2932.2,2931.5,0.06820909]
[1731073064372,0.7865,2932.2,2931.6,11.545943]
[1731073064572,0.7865,2932.2,2931.7,0.06820913]
[1731073065145,0.01,2932.0,2931.6,11.545943]
[1731073065563,0.815,2931.9,2931.6,11.545943]
[1731073066461,0.815,2931.9,2931.7,0.06821541]
[1731073070248,0.815,2931.9,2931.7,11.61415841]
[1731073070451,0.815,2931.9,2931.7,11.545943]
[1731073071188,0.815,2931.9,2931.8,0.06821081]
[1731073071493,0.815,2931.9,2931.7,11.545943]
[1731073071686,0.815,2931.9,2931.8,0.06821081]
[1731073071850,0.815,2931.9,2931.7,11.545943]
[1731073072897,0.815,2931.9,2931.8,0.06821082]
[1731073073206,0.815,2931.9,2931.7,11.545943]
[1731073074567,0.815,2931.9,2931.8,0.06821079]
[1731073076083,0.815,2931.9,2931.8,11.545943]
[1731073076260,0.81351015,2931.9,2931.8,11.545943]
[1731073081903,0.82351015,2931.9,2931.8,11.545943]
[1731073082112,0.01,2931.5,2931.1,11.545943]
[1731073082412,0.8312,2931.4,2931.1,11.545943]
[1731073084484,0.775,2931.8,2931.2,0.89352476]
[1731073084690,0.775,2932.2,2931.2,0.89352476]
[1731073084915,0.775,2932.2,2931.3,11.545943]
[1731073085115,0.775,2932.2,2931.4,0.06820327]
[1731073085424,0.01,2932.1,2931.3,11.545943]
[1731073085586,0.01,2932.1,2931.4,0.06821104]
[1731073085789,0.01,2932.1,2931.3,11.545943]
[1731073085987,0.01,2932.1,2931.5,0.06821104]
[1731073086817,0.775,2932.2,2931.5,0.06821104]
[1731073087335,0.775,2932.2,2931.4,0.06820735]
[1731073087634,0.775,2932.2,2931.3,11.545943]
[1731073088036,0.775,2932.2,2931.4,11.545943]
[1731073089248,0.775,2932.2,2931.6,0.7671]
[1731073093902,0.01,2932.5,2931.7,11.545943]
[1731073094103,0.7645,2932.4,2931.8,11.545943]
[1731073095690,0.7645,2932.4,2931.9,0.06820445]
[1731073096040,0.7645,2932.4,2931.8,11.545943]
[1731073096041,0.01,2932.3,2931.8,11.545943]
[1731073096239,0.01,2932.1,2931.8,11.545943]
[1731073096444,0.8182,2932.0,2931.8,11.545943]
[1731073100091,0.8182,2932.0,2931.3,11.545943]
[1731073100890,0.01,2931.8,2931.3,11.545943]
[1731073101045,0.8079,2931.5,2931.4,11.545943]
[1731073102185,0.826,2930.9,2930.8,11.545943]
[1731073103194,0.816,2930.9,2930.8,11.545943]
[1731073104398,0.8117,2931.3,2930.8,11.545943]
[1731073104547,0.8117,2931.3,2930.9,0.06822781]
[1731073105846,0.8117,2931.3,2931.0,11.545943]
[1731073106286,0.8217,2931.3,2931.0,11.545943]
[1731073107168,0.8217,2931.3,2931.1,11.545943]
[1731073107368,0.8217,2931.3,2930.3,0.7955]
[1731073107369,0.8217,2931.3,2931.2,11.545943]
[1731073107564,1.29145727,2931.3,2931.2,11.545943]
[1731073108376,1.22311653,2931.3,2931.2,11.545943]
[1731073110193,0.41901653,2931.3,2930.1,11.545943]
[1731073110413,0.7591,2931.2,2930.2,11.61418083]
[1731073110614,0.7591,2931.2,2930.2,11.545943]
[1731073110782,0.7591,2931.2,2930.3,0.06823783]
[1731073111196,0.7591,2931.2,2930.4,11.545943]
[1731073111197,0.01,2930.9,2930.4,11.545943]
[1731073111386,0.01,2930.9,2930.5,0.06823783]
[1731073111899,0.7971,2930.8,2930.5,0.06823783]
[1731073112216,0.7971,2930.8,2930.4,11.545943]
[1731073112812,0.7971,2930.8,2930.0,3.8282]
[1731073112813,0.7971,2930.8,2930.5,11.545943]
[1731073113184,0.06834074,2931.3,2929.7,35.08]
[1731073113185,4.10396533,2930.7,2930.6,11.545943]
[1731073113769,4.65396533,2930.7,2930.6,11.545943]
[1731073114511,0.7647,2929.9,2929.8,3.006143]
[1731073115003,0.83304074,2929.9,2929.8,3.006143]
[1731073115581,1.24319135,2929.9,2929.8,3.006143]
[1731073115813,1.79319135,2929.9,2929.8,3.006143]
[1731073117214,4.79319135,2929.9,2929.8,3.006143]
[1731073117766,4.79319135,2929.9,2928.2,1.366151]
[1731073117767,0.8065,2928.8,2928.2,1.366151]
[1731073118121,0.8065,2928.8,2927.6,0.8194]
[1731073118122,0.01,2928.7,2927.6,0.8194]
[1731073118409,0.01,2928.7,2927.7,0.73353082]
[1731073118769,0.01,2928.7,2927.7,0.66523882]
[1731073118969,0.07834074,2928.7,2927.7,0.66523882]
[1731073119169,0.01,2928.4,2927.7,0.66523882]
[1731073120600,0.01,2928.4,2927.6,0.8194]
[1731073121043,0.01,2928.4,2927.7,0.06829556]
[1731073123307,0.01,2928.4,2927.8,0.38876956]
[1731073123504,0.01,2928.4,2927.9,0.06829328]
[1731073124345,0.01,2928.4,2927.8,9.03876956]
[1731073124705,0.01,2928.4,2927.9,0.0682933]
[1731073125745,0.01,2928.4,2927.8,9.03876956]
[1731073125951,0.01,2928.4,2927.9,0.78756494]
[1731073126852,0.01,2928.0,2927.3,9.79823591]
[1731073127062,0.7615,2927.9,2927.1,0.8065]
[1731073127412,0.7615,2927.9,2927.0,0.7921]
[1731073128210,0.7615,2927.9,2927.1,0.2158823]